Cogmind - Beta 16 @@@ ROGUE MODE // 2026.01.24 @ 21:27:48 Player: Tibo Result: Destroyed by G-34 Mercenary with Small Laser Performance ------------- Evolutions (1) 500 Regions Visited (3) 600 Robots Destroyed (39) 195 Value Destroyed (703) 703 Prototype IDs (3) 60 Alien Tech Used (0) 0 Bonus (0) 0 TOTAL SCORE: 2058 Bonus ------- None Cogmind --------- Core Integrity 0/400 Matter 289/300 Energy 87/100 System Corruption 1% Temperature Cool (9) Movement Treading (145) Location -9/Mines Parts ------- > --- POWER (1) -------- (None) > --- PROPULSION (3) --- Advanced Treads Advanced Treads (fused) > --- UTILITY (3) ------ Heat Sink Small Storage Unit > --- WEAPON (2) ------- Pulse Rifle Great Maul > --- INVENTORY (8) ---- Advanced Treads Advanced Treads Advanced Treads Advanced Treads Titanium Leg Titanium Leg Medium Matter Pod (0) Mining Laser Peak State ------------ > --- POWER ------------ Ion Engine > --- PROPULSION ------- Advanced Treads Advanced Treads Advanced Treads > --- UTILITY ---------- Heat Sink Small Storage Unit Experimental Sensor Array > --- WEAPON ----------- Pulse Rifle Great Maul > --- INVENTORY -------- Advanced Treads Advanced Treads Advanced Treads Advanced Treads Titanium Leg Titanium Leg Medium Matter Pod Mining Laser [Rating: 29] Favorites ----------- Power Ion Engine Engine Ion Engine Propulsion Aluminum Leg Treads Advanced Treads Leg Aluminum Leg Hover Unit Airjet Utility Small Storage Unit Device Heat Sink Storage Small Storage Unit Weapon EM Pulse Gun Energy Gun EM Pulse Gun Energy Cannon Advanced Beam Cannon Ballistic Gun Shotgun Launcher Grenade Launcher Special Weapon Mining Laser Impact Weapon Great Maul Special Melee Weapon Datajack Build | -11 -10 -9 -9 ------- Run | Yrd Mat Mat Min Slots Evolved 2 | . . 2 . Power . | . . . . Propulsion 1 | . . 1 . Utility 1 | . . 1 . Weapon . | . . . . Parts Attached 40 | 7 11 21 1 Power 2 | 1 1 . . Engine 2 | 1 1 . . Core . | . . . . Reactor . | . . . . Propulsion 15 | 2 1 12 . Treads 6 | . . 6 . Leg 3 | 2 1 . . Wheel . | . . . . Hover 6 | . . 6 . Flight . | . . . . Utility 9 | 2 3 3 1 Device 6 | 1 2 2 1 Storage 3 | 1 1 1 . Processor . | . . . . Hackware . | . . . . Protection . | . . . . Artifact . | . . . . Weapon 14 | 2 6 6 . Energy Gun 6 | 2 2 2 . Energy Cannon 1 | . . 1 . Ballistic Gun 3 | . 2 1 . Ballistic Cannon . | . . . . Launcher 1 | . 1 . . Special Weapon 1 | . . 1 . Impact Weapon 1 | . . 1 . Slashing Weapon . | . . . . Piercing Weapon . | . . . . Special Melee Weapon 1 | . 1 . . Unidentified Prototypes 3 | . . 2 1 Parts Lost 13 | . 4 7 2 Power 2 | . . 1 1 Propulsion 4 | . . 3 1 Utility 3 | . 2 1 . Weapon 4 | . 2 2 . Highest Loss Streak 5 | . 2 5 1 To Critical Strikes . | . . . . Average Backups 7 | 5 7 7 7 Power . | 1 1 . . Propulsion 3 | 2 2 4 6 Utility . | . 1 . . Weapon 2 | 1 2 2 1 Tool/Special . | . . . . Unused Backups 16 | . 2 9 5 Power 1 | . 1 . . Propulsion 13 | . 1 8 4 Utility . | . . . . Weapon 2 | . . 1 1 Tool/Special . | . . . . Average Slot Usage (%) 92 | . 96 90 90 Engine 11 | . 14 9 3 Treads 6 | . . 7 31 Leg 11 | . 28 . . Hover 11 | . . 21 . Device 14 | . 11 17 18 Storage 12 | . 14 11 13 Energy Gun 12 | . 21 5 11 Ballistic Gun 5 | . 3 7 . Launcher 2 | . 1 4 . Impact Weapon 2 | . . 2 11 Peak Build Rating 29 | 8 9 20 29 Average Rating 12 | 6 7 16 25 On Entrance 8 | . 8 7 18 Avg Prop Armor Cover (%) 19 | . . 15 21 Naked Turns . | . . . . Heaviest Build 20 | 15 16 19 20 Greatest Support 66 | 20 20 66 66 Greatest Overweight (x) 4 | . . 4 4 Average Overweight (x) . | . . . . Largest Inventory Capacity 25 | 8 25 8 8 Average Capacity 7 | 7 8 8 8 Most Carried 8 | 8 8 8 8 Average Carried 7 | 5 7 7 7 Final Capacity 8 | 8 8 8 8 Final Carried 8 | 8 8 8 8 Class Distribution -------------------- 100% | Mutant Dominant Class ---------------- Mutant | -10/Materials Mutant | -9/Materials Mutant | -9/Mines Resources | -11 -10 -9 -9 ----------- Run | Yrd Mat Mat Min Matter Collected 807 | 270 125 398 14 Remotely . | . . . . Salvage Created 1059 | 171 262 530 96 Parts 66 | 15 26 22 3 Haulers Intercepted 1 | . . 1 . Recyclers Shooed 4 | 1 2 1 . Parts Field Recycled . | . . . . Retrieved Matter . | . . . . Parts Self-Destructed . | . . . . Prevented . | . . . . Parts Restored . | . . . . Kills | -11 -10 -9 -9 ------- Run | Yrd Mat Mat Min Combat Hostiles Destroyed 23 | . 11 9 3 Melee 1 | . . . 1 Guns 11 | . 8 2 1 AOE 7 | . 3 4 . Classes Destroyed 11 | 3 3 3 2 Worker 5 | 2 . 3 . Builder 2 | . . 2 . Tunneler 4 | 3 . 1 . Hauler 1 | . . 1 . Recycler 3 | 1 . 2 . Watcher 2 | . 1 1 . Swarmer 10 | . 7 3 . Grunt 7 | . 4 2 1 Duelist 1 | . . . 1 Sentry 4 | . . 4 . Assembled 1 | . . . 1 Best Kill Streak 6 | 3 5 6 3 Combat Bots Only 4 | . 4 3 3 Max Kills in Single Turn 3 | 1 3 3 1 Gunslinging . | . . . . Exploded 3 | . 3 2 . Melee 1 | . . . 1 Uniques/NPCs Destroyed . | . . . . Combat | -11 -10 -9 -9 -------- Run | Yrd Mat Mat Min Hostile Shots Fired 208 | . 47 123 38 Missed 58 | . 17 36 5 Hits 150 | . 30 87 33 Melee 3 | . . . 3 Projectile 147 | . 30 87 30 AOE 7 | . . . 7 Critical Strikes 4 | . . 3 1 Damage Taken 2073 | 52 410 983 628 Core 478 | 13 64 282 119 Absorbed by Shields . | . . . . Core Remaining (%) 81 | 94 69 . . Volleys Fired 75 | 11 30 27 7 Largest 2 | 2 2 2 1 Hottest 100 | 90 80 100 63 Shots Fired 113 | 22 51 33 7 Gun 92 | 22 49 14 7 Cannon . | . . . . Launcher 11 | . 2 9 . Special 10 | . . 10 . Kinetic 14 | . 5 9 . Thermal 46 | 11 13 15 7 Explosive 11 | . 2 9 . Electromagnetic 42 | 11 31 . . Robot Hit Streak 10 | 10 8 5 6 Robot Miss Streak 3 | 2 3 3 3 Penetration Max . | . . . . Secondary Targets . | . . . . Shots Hit Robots 72 | 16 28 18 10 Core Hits 44 | 7 14 20 3 Critical Kills . | . . . . Critical Parts Destroyed 7 | . . 5 2 Critical Strikes 9 | . . 6 3 Burn 2 | . . 1 1 Smash 7 | . . 5 2 Melee Attacks 21 | . 4 12 5 Impact 17 | . . 12 5 Slashing . | . . . . Piercing . | . . . . Sneak Attacks 5 | . . 5 . Combat Hostiles . | . . . . Follow-up Attacks . | . . . . Damage Inflicted 2560 | 221 837 1211 291 Guns 690 | 180 308 99 103 Cannons . | . . . . Explosions 998 | 41 529 428 . Melee 866 | . . 678 188 Ramming 6 | . . 6 . Kinetic 97 | . 34 63 . Thermal 286 | 91 56 36 103 Explosive 957 | . 529 428 . Electromagnetic 348 | 130 218 . . Impact 866 | . . 678 188 Slashing . | . . . . Piercing . | . . . . Highest Corruption 1 | . . 1 1 Average Corruption 1 | . . 1 1 Corruption Purged . | . . . . Corruption Blocked . | . . . . Effects 3 | . . 2 1 Matter Fused 1 | . . 1 . Parts Fused 1 | . . . 1 Data Loss (major) 1 | . . 1 . Overload Shots . | . . . . Overflow Damage 784 | . 57 624 103 Projectiles 55 | . . 55 . Explosions 60 | . 57 3 . Melee 669 | . . 566 103 Knockbacks 6 | . . 5 1 Impact 5 | . . 4 1 Kinetic . | . . . . Secondary 1 | . . 1 . Self-Inflicted Damage 158 | 54 101 3 . Shots 3 | 2 1 . . Rammed 1 | . . 1 . Targets Rammed 1 | . . 1 . Kicked . | . . . . Crushed . | . . . . Highest Temperature 96 | 96 96 9 3 Average Temperature 32 | 37 32 4 3 Received Heat Transfer 462 | . 78 258 126 Siege Activations . | . . . . Martial Activations . | . . . . Shielding Activations . | . . . . Robots Disrupted . | . . . . Combat Hostiles . | . . . . Robots Corrupted 7 | . . 6 1 Combat Hostiles 4 | . . 3 1 Parts Fried 7 | . . 6 1 Impact Corruptions 25 | . . 22 3 Robots Melted . | . . . . Combat Hostiles . | . . . . Parts Melted . | . . . . Heat Transferred 767 | 198 125 148 296 Parts Sabotaged . | . . . . Parts Stolen . | . . . . Parts Stripped . | . . . . Power Chain Reactions 2 | 2 . . . Alert | -11 -10 -9 -9 ------- Run | Yrd Mat Mat Min Maximum Alert Level 1 | . . 1 . Low Security (%) 99 | 100 100 99 100 Level 1 . | . . . . Level 2 . | . . . . Level 3 . | . . . . Level 4 . | . . . . Level 5 . | . . . . High Security . | . . . . Max Security . | . . . . Peak Influence 201 | 10 172 201 63 Initial 63 | . . 49 63 Average 48 | 1 61 51 24 Influence Increases 1015 | 30 399 536 50 Destroy 0b10 Robot/C 440 | . 220 180 40 Destroy 0b10 Robot/NC 85 | 30 5 50 . Destroy Leader 136 | . 52 74 10 Successful Hack 37 | . 26 11 . Disable Machine 45 | . 15 30 . Destroy Structure 77 | . 36 41 . Partial Spotted 75 | . 15 60 . Lose Combat Pursuer 120 | . 30 90 . Influence Decreases 965 | 30 282 491 162 Entered New Map 167 | . . 68 99 Time Decay 694 | 30 249 362 53 Lost Part 104 | . 33 61 10 Squads Dispatched 6 | . 4 2 . Investigation 2 | . 2 . . Extermination . | . . . . Reinforcement 4 | . 2 2 . Assault . | . . . . Garrison . | . . . . Intercept . | . . . . Searches Triggered . | . . . . Construction Impeded . | . . . . Haulers Reinforced . | . . . . Active Scanning Responses . | . . . . Cargo Convoy Interrupts . | . . . . Stealth | -11 -10 -9 -9 --------- Run | Yrd Mat Mat Min Distress Signals 7 | . 4 3 . Communications Jammed . | . . . . Distress Signals . | . . . . Times Spotted 59 | . 23 26 10 Peak Tracking Total 7 | . 7 6 6 Tactical Retreats 8 | . 2 5 1 Traps | -11 -10 -9 -9 ------- Run | Yrd Mat Mat Min Traps Triggered 4 | . 3 1 . Indirectly . | . . . . Trap Hack Attempts . | . . . . Triggered . | . . . . Disarmed 1 | . 1 . . Reprogrammed 6 | . . 6 . Reused . | . . . . Traps Extracted . | . . . . Installed . | . . . . Triggered . | . . . . Machines | -11 -10 -9 -9 ---------- Run | Yrd Mat Mat Min Machines Disabled 3 | . 1 2 . Max in Single Turn 1 | . 1 1 . Machines Repaired . | . . . . Machines Dismantled . | . . . . Machines Sabotaged . | . . . . Overloaded Fab Kills . | . . . . Hacking | -11 -10 -9 -9 --------- Run | Yrd Mat Mat Min Machines Accessed 8 | . 5 3 . Terminals 8 | . 5 3 . Fabricators . | . . . . Repair Stations . | . . . . Recycling Units . | . . . . Scanalyzers . | . . . . Garrison Access . | . . . . Total Hacks 23 | . 13 10 . Successful 10 | . 5 5 . Failed 13 | . 8 5 . Catastrophic 2 | . 1 1 . Database Lockouts . | . . . . Manual . | . . . . Terminals 23 | . 13 10 . Fabricators . | . . . . Repair Stations . | . . . . Recycling Units . | . . . . Scanalyzers . | . . . . Garrison Access . | . . . . Terminal Hacks 10 | . 5 5 . Record 1 | . 1 . . Robot Analysis 1 | . 1 . . Locate Traps 2 | . . 2 . Disarm Traps 1 | . 1 . . Reprogram Traps 1 | . . 1 . Dispatch Records 2 | . 1 1 . Registered Components 1 | . . 1 . Zone Layout 1 | . 1 . . Fabricator Hacks . | . . . . Repair Station Hacks . | . . . . Recycling Unit Hacks . | . . . . Scanalyzer . | . . . . Garrison Access Hacks . | . . . . Unauthorized Hacks . | . . . . Terminals . | . . . . Fabricators . | . . . . Repair Stations . | . . . . Recycling Units . | . . . . Scanalyzers . | . . . . Garrison Access . | . . . . Data Cores Recovered . | . . . . Used . | . . . . Hacking Detections 8 | . 5 3 . Full Trace Events 1 | . 1 . . Feedback Events . | . . . . Feedback Blocked . | . . . . Robot Schematics Acquired . | . . . . Robots Built . | . . . . Authchips . | . . . . Time . | . . . . Total Robot Build Rating . | . . . . Part Schematics Acquired . | . . . . Parts Built . | . . . . Authchips . | . . . . Time . | . . . . Total Part Build Rating . | . . . . Part Studies Acquired . | . . . . Parts Repaired . | . . . . Time . | . . . . Parts Recycled . | . . . . Recycled Matter . | . . . . Retrieved Matter . | . . . . Retrieved Components . | . . . . Parts Scanalyzed . | . . . . Part Schematics Acquired . | . . . . Parts Damaged . | . . . . Bothacking | -11 -10 -9 -9 ------------ Run | Yrd Mat Mat Min Used RIF Installer . | . . . . Robots Hacked 2 | . 2 . . Non-combat 2 | . 2 . . Combat . | . . . . Robot Hacks Applied 2 | . 2 . . parse_system 2 | . 2 . . Relay Couplers Released . | . . . . Fabnet Peak Effective % . | . . . . Robots Rewired . | . . . . Allies Hacked . | . . . . Hacks Repelled . | . . . . Allies | -11 -10 -9 -9 -------- Run | Yrd Mat Mat Min Total Allies . | . . . . Largest Group . | . . . . Highest-Rated Group . | . . . . Highest-Rated Ally . | . . . . Total Orders . | . . . . Ally Attacks . | . . . . Total Damage . | . . . . Kills . | . . . . Allies Corrupted . | . . . . Allies Melted . | . . . . Intel | -11 -10 -9 -9 ------- Run | Yrd Mat Mat Min Active Infowar (turns) 1585 | 105 632 727 121 Sensors 246 | . . 125 121 Terrain 949 | . 347 602 . Seismic 390 | 105 285 . . Robot Analysis Total 1 | . 1 . . Derelict Logs Recovered . | . . . . Drone Launches . | . . . . Drone Recoveries . | . . . . Exploration | -11 -10 -9 -9 ------------- Run | Yrd Mat Mat Min Turns Passed 2231 | 219 808 1045 159 Spaces Moved 1456 | 146 494 744 72 Core 37 | 10 . 26 1 Treads 211 | . . 140 71 Legs 644 | 136 494 14 . Wheels . | . . . . Hover 564 | . . 564 . Flight . | . . . . Fastest Speed 50 | 50 120 52 145 Average Speed 98 | 115 120 76 146 Slowest Speed 250 | 120 120 250 250 Overloaded Moves . | . . . . Propulsion Burnouts . | . . . . Robots Hopped . | . . . . Potential Cave-ins 5 | . 1 4 . Cave-ins Triggered . | . . . . Exploration Rate (%) 34 | 7 72 41 18 Regions Visited 3 Branch Regions 1 Pre-discovered Areas . | . . . . Known Exits Taken . | . . . . Unknown Exits Taken 3 | 1 1 1 . Scrap Searched . | . . . . Spaces Dug 9 | . . 9 . Terrain Destroyed 93 | 9 42 42 . Melee . | . . . . Projectile 9 | . . 9 . AOE 84 | 9 42 33 . Terrain Rammed . | . . . . Walls Destroyed . | . . . . Machines Disabled . | . . . . Actions | -11 -10 -9 -9 --------- Run | Yrd Mat Mat Min Total 2079 | 172 653 1145 109 Wait 419 | . 106 291 22 Move 1453 | 145 493 743 72 Hop . | . . . . Pick Up 29 | 9 2 17 1 Fast Attach 17 | 6 3 8 . Attach 5 | 1 1 2 1 Detach 1 | . . 1 . Swap 30 | . 10 19 1 Drop 28 | . 4 24 . Fire 75 | 11 30 27 7 Melee 21 | . 4 12 5 Ram 1 | . . 1 . Kick . | . . . . Crush . | . . . . Escape Stasis . | . . . . Rewire . | . . . . Trap . | . . . . Miscellaneous . | . . . . Route ------- -11/Scrapyard -10/Materials (discovered 3 exits: *Mat x2 / [*Min]) -9/Materials -9/Mines History --------- Turn | Location | Event 4 | -11/Scrapyard | Discovered new exit (range 15) 220 | -11/Scrapyard | Entered Materials 287 | -10/Materials | Discovered new exit (range 16) 329 | -10/Materials | Build established: Mutant 426 | -10/Materials | Discovered new exit (range 13) 948 | -10/Materials | Discovered new exit (range 15) 1028 | -10/Materials | Entered another Materials area 1028 | -9/Materials | Evolved 2 slots: Propulsion x1, Utility x1 1804 | -9/Materials | Lost 5 parts (3n1u1w) 1817 | -9/Materials | Core integrity fell below 50% 2010 | -9/Materials | Discovered new exit (range 11) 2073 | -9/Materials | Entered Mines 2074 | -9/Mines | Assembled infested the area 2102 | -9/Mines | Found a damaged Exp. Sensor Array with a note attached 2105 | -9/Mines | Found Prototype Device 2107 | -9/Mines | Identified Exp. Sensor Array 2221 | -9/Mines | Core integrity fell below 20% 2232 | -9/Mines | Destroyed by G-34 Mercenary with Small Laser Last Messages --------------- 02210_ as-05223 destroyed. 02211_ as-40610 sneak attacks. 02212_ Adv. Treads destroyed. 02215_ as-40610 destroyed. 02218_ Acquired 14 matter. 02221_ K-01 Serf collects debris. 02222_ L-31 Rogue suffers critical hit (Smash). 02222_ Destroyed Imp. Aluminum Leg. 02222_ L-31 Rogue system corrupted by crushing effect. 02228_ Exp. Sensor Array severed. 02228_ L-31 Rogue suffers critical hit (Smash). 02228_ Destroyed Melee Analysis Suite. 02228_ Destroyed Imp. Ion Engine. 02228_ L-31 Rogue system corrupted by crushing effect. 02228_ L-31 Rogue knocked back. 02229_ L-31 Rogue system terminally corrupted. 02229_ Core Shielding fried. 02231_ G-34 Mercenary destroyed. Map ----- +----------------------------------------------------+ | | | | | | | | | | | | | | | ???????????????????????????????????????????????? | | ????????????##?????????????????????????????????? | | ??????????## ##???????????????????????????????? | | ??????????# ##??????????????????????????????? | | ???###??## #??????????????????????????????? | | ??## ### #??????????????????????????????? | | ### ???????????????????????????????? | | """ ????????????????????????????????? | | ? """ #????????????????????????????????? | | ???# """ #####????????????????????????????? | | ?????# ## #????????????????????????????? | | ####### #????????????????????????????? | | ## ## #????????????????????????????? | | # ###??#####?????????????????????? | | # ##???## ##????????????????????? | | #### ######????# ##???????????????????? | | * ##?????????# % #???????????????????? | | #### ##??????#### #### #?????????? | | # ##??????# % @ #??????????? | | # #########u## k a #??????????? | | ### # ### = ######%= #??????????? | | ??###### ###########?##%g#??????? #??????????? | | ???????# #????????????#= #??????????#??????????? | | ???????# #????????????# #?????????????????????? | | ???????# ###??????????# #?????????????????????? | | ????#### ###???????? ?????????????????????? | | ???## ##??????? ?????????????????????? | | ???# #??????" """ ????????????????????? | | ???# ## #??????" """ ????????????????????? | | ???## ##?# #?????" """?#???????????????????? | | ????#####???####????? ????????????????????????? | | ?????????????????????" ????????????????????????? | | ?????????????????????? ????????????????????????? | | ???????????????????????????????????????????????? | | ???????????????????????????????????????????????? | | ???????????????????????????????????????????????? | | ???????????????????????????????????????????????? | | ???????????????????????????????????????????????? | | ???????????????????????????????????????????????? | | ???????????????????????????????????????????????? | | ???????????????????????????????????????????????? | | ???????????????????????????????????????????????? | | ???????????????????????????????????????????????? | +----------------------------------------------------+ Best States ------------- Heat Dissipation 38 Energy Generation 10 Energy Capacity 250 Matter Stores 300 Matter Capacity 400 Sight Range 16 Robot Scan Range 20 Terrain Scan Range 16 Terrain Scan Density 10 Evasion (%) 55 Recoil Reduction 3 Item Schematics ----------------- None Robot Schematics ------------------ None Fabricated ------------ Nothing Repaired ---------- Nothing Studied --------- None Alien Tech Used ----------------- None Achievements -------------- Overwhelming Resistances Are Futile There's More Where That Came From Challenges ------------ None Game ------ Seed AssemblyFieldCrosscalibrator Manual? 0 Play Time 00:36:36 Cumulative 18.8 hours Start 2026.01.24 @ 20:51:57 End 2026.01.24 @ 21:27:48 Sessions 1 Manual Loads 0 Difficulty Rogue Special Mode None Game No. 24 Rogue 24 Adventurer 0 Explorer 0 Win Type - Total 0 Types 0/0/0/0/0/0/0/0/0/0 Lore% 11 Gallery% 21 Achievement% 11 Wizard Run 0 Options --------- Layout 1 ASCII 0 Keyboard 1 Movement Numpad Keybinds 0 Fullscreen 1 Font 24/Smallcaps Map View 50x35 Zoom Use 0% Tactical HUD 1 Map Filters NONE Filters NONE Steam 1 RUN: 470b6c62-4070-40af-b6e7-70e465072863